Workbook

Sheet Cover
A1: Genesys SIP Server Sizing Tool 8.1.1
A3: Note: This Sizing Tool provides a framework to evaluate the Genesys SIP Server load and to make the proper hardware choice for it. Click the tabs at the bottom to access a product.
A5: The information contained herein is proprietary and confidential and cannot be disclosed or duplicated without the prior written consent of Genesys Telecommunications Laboratories, Inc. Copyright © 2014-2017 Genesys Telecommunications Laboratories, Inc. All rights reserved.
A7: About Genesys: Genesys solutions feature leading software that manages customer interactions over phone, Web, and mobile devices. The Genesys software suite handles customer conversations across multiple channels and resources—self-service, assisted-service, and proactive outreach—fulfilling customer requests and optimizing customer care goals while efficiently using resources. Genesys software directs more than 100 million customer interactions every day for 4000 companies and government agencies in 80 countries. These companies and agencies leverage their entire organization, from the contact center to the back office, while dynamically engaging their customers. Go to www.genesys.com for more information.Each product has its own documentation for online viewing at the Genesys Customer Care website or on the Documentation Library DVD, which is available from Genesys upon request. For more information, contact your sales representative.
A8: Notice: Although reasonable effort is made to ensure that the information in this document is complete and accurate at the time of release, Genesys Telecommunications Laboratories, Inc., cannot assume responsibility for any existing errors. Changes and/or corrections to the information contained in this document may be incorporated in future versions.
A9: Trademarks: Genesys, the Genesys logo, and T-Server are registered trademarks of Genesys Telecommunications Laboratories, Inc. All other trademarks and trade names referred to in this document are the property of other companies. The Crystal monospace font is used by permission of Software Renovation Corporation, www.SoftwareRenovation.com.
A10: Technical Support from VARs: If you have purchased support from a value-added reseller (VAR), please contact the VAR for technical support.
A11: Customer Care from Genesys: If you have purchased support directly from Genesys, please contact Genesys Customer Care at the regional numbers provided on the Genesys Customer Care website.
A12: Ordering and Licensing Information: Complete information on ordering and licensing Genesys products can be found in the Genesys Licensing Guide. Released by Genesys Telecommunications Laboratories, Inc. www.genesys.com.
A14: Document Version: 8.1.100.12

Sheet User Guide
A1: SIP Server and SIP Proxy Sizing Tool is an Excel Workbook File. It was developed and tested with Microsoft Excel 2007. To open the User's Guide, Microsoft Word 2007 or later must be installed.
A6: Note. Sizing is valid for SIP Server running on dedicated hardware or inside of the Virtual machine on top of VMWare ESX or Windows Hyper-V
A7: For case of Virtual machine next conditions should be satisfied:
A8: 1. Over-provisioning (CPU and memory) does not happen on hosts where VM with SIP Servers are running
A9: 2. Hosts are configured with performance power profile (processors works at the maximum frequency).
A16: Version | C16: Change History
A18: 8.1.100.12 | C18: Hit Ratio for predictive calls added.
A19: 8.1.100.11 | C19: Virtual Queue Event Distribution Adjustment is now calculated after AttachedData Adjustment but before Monitoring Client Connections Adjustment.
A20: 8.1.100.10 | C20: Validated sizing for Virtual Machines on top of Windows 2012 Hyper-V. Updated a basic set of coefficients.
A21: 8.1.100.09 | C21: Fixed bug in sizing of Redirect Mode for Windows platform(invalid correction of for user date update).
A22: 8.1.100.08 | C22: Fixed bug in calculation of SIP Server numbers. Removed “Logical Processors” rows, because these values were not used for calculation.
A23: 8.1.100.07 | C23: Added sizing of SIP Server in Redirect mode.
A24: 8.1.100.06 | C24: Updated the formula to calculate a hardware adjustment coefficient.
A25: 8.1.100.05 | C25: Added Virtual Queue event distribution.
A26: 8.1.100.04 | C26: First published version.

Sheet Input&Calculation
B2: Genesys SIP Sizing Input Parameters | I2: Genesys SIP Sizing Output Summary
B4: Parameter | C4: Value | D4: Comments | I4: Minimum # SIP Server HA Pairs (if running multi-threaded) | J4: =MAX(C46,C48,C91) -> 1
B5: Operating System & Log Level | C5: Windows_all | I5: Minimum # SIP Server HA Pairs (if running single-threaded) | J5: =MAX(C46,C48,C92) -> 2
B7: Call Type | C7: Peak Call Traffic (calls per sec) | D7: Average Call Duration (sec) | E7: Predictive Hit Ratio (%) | F7: Comments | I7: =CONCATENATE("Using current plans with ", TEXT(C29,"#")," SIP Server HA Pair(s), each with ", TEXT(C30,"#")," SIP Proxies") -> Using current plans with 1 SIP Server HA Pair(s), each with 2 SIP Proxies
B8: Inbound Calls - Routed | C8: 10 | D8: 300 | I8: In multi-threaded mode, estimated CPU usage would be
B9: Outbound Calls - Routed Predictive | C9: 0 | D9: 300 | E9: 30% | I9: SIP Server Main Thread CPU (estimated peak %) | J9: =D89/100 -> 31.8%
B10: Outbound Calls - Routed Predictive ASM | C10: 0 | D10: 300 | E10: 30% | I10: SIP Server Call Manager Thread CPU (estimated peak %) | J10: =E89/100 -> 28.0%
B11: Outbound Calls - Routed Non-Predictive | C11: 0 | D11: 300
B12: Internal Calls - Direct (not routed) | C12: 2 | D12: 150 | I12: In single-threaded mode, estimated CPU usage would be
I13: SIP Server Single Thread CPU (estimated peak %) | J13: =F89/100 -> 79.2%
B14: Detailed Call Modeling | C14: Percentage or Rate | D14: Average Call Duration (sec) | E14: Comments
B15: Single-Step Transfer (% All Routed Calls) | C15: 20 | D15: n/a | I15: SIP Proxy CPU (estimated peak %) | J15: =H89/100 -> 6.0%
B16: Two-Step Transfer (% All Routed Calls) | C16: 20 | D16: 100 | E16: Duration of consult call before transfer
B17: Recording (% of All Routed Calls) | C17: 100 | D17: n/a | I17: SIP Network Bandwidth (total estimated peak KBps) | J17: =(C54*Network!NSIP_inbound+C59*Network!NSIP_1xfer+C60*Network!NSIP_2xfer+C61*Network!NSIP_record +C62*Network!NSIP_1confr+C63*Network!NSIP_2confr + C64*Network!NSIP_consult +C58* Network!NSIP_intern +C65*Network!NSIP_treatment + C66*Network!NSIP_treatment_next + C67*Network!NSIP_monitor +C55*Network!NSIP_predictive_route + C56*Network!NSIP_predictive_merge)/1000 -> 687
B18: Single-Step Conference (% All Routed Calls) | C18: 20 | D18: n/a | I18: T-Lib Network Bandwidth (total estimated peak KBps) | J18: =ROUND(((C54*Network!NTlib_inbound+C59*Network!NTlib_1xfer+C60*Network!NTlib_2xfer+C61*Network!NTlib_record +C62*Network!NTlib_1confr+C63*Network!NTlib_2confr + C64*Network!NTlib_consult +C58* Network!NTlib_intern +C65*Network!NTlib_treatment + C66*Network!NTlib_treatment_next + C67*Network!NTlib_monitor +C55*Network!NTlib_predictive_route + C56*Network!NTlib_predictive_merge + (C68+C69+C70)*Network!NTLib_ISCC + C33*C54*(C34+Network!NTlib_data))*C32 +(Network!R_size+C36)*C35*(1+C32))/1000,0) -> 2565
B19: Two-Step Conference (% All Routed Calls) | C19: 10 | D19: 100 | E19: Duration of consult call before merge into conf
B20: Consultation (% All Routed Calls) | C20: 20 | D20: 100 | E20: Duration of consult call (no xfer or conf) | I20: Concurrent Calls Per SIP Server HA Pair (estimated peak) | J20: =C45/C29 -> 3900
B21: Treatment (% Inbound calls) | C21: 100 | D21: n/a | I21: Agent Connections Per SIP Server HA Pair (estimated peak) | J21: =C31/C29 -> 1000
B22: # Treatments per Inbound Call | C22: 5 | D22: n/a
B23: Voice Monitoring (% All Routed calls) | C23: 20 | D23: n/a
B24: ISCC Origination (% of Inbound calls) | C24: 50 | D24: n/a
B25: ISCC Direct-UUI (% of Inbound calls) | C25: 0 | D25: n/a
B26: ISCC Route (% of Inbound calls) | C26: 0 | D26: n/a
B28: Parameter | C28: Value | D28: Comments
B29: Planned # SIP Server HA Pair(s) | C29: 1
B30: Planned # SIP Proxies per SIP Server HA Pair | C30: 2 | D30: Proxy is optional; but when deployed use at least 2
B31: Agent Desktops Connections (total) | C31: 1000 | D31: Connections from Workspace or custom desktop
B32: Monitoring Client Connections (to each SIP Server) | C32: 6 | D32: Connections from Stat Server, ICON, etc
B33: Attached Data - Average # Updates per Call | C33: 10
B34: Attached Data - Average Size per Update (bytes) | C34: 1024
B35: Virtual Queue: Overall Event Rate | C35: 100
B36: Vrtual Queue: Average User Data Size | C36: 1024
B37: Customer Platform - CPU Benchmark | C37: 30.5
B38: Genesys Reference Platform - CPU Benchmark | C38: 30.5 | D38: Dell Power Edge R710 2.8 GHz, 8 Cores/16 hyper threads
B42: Calculations
B44: Capacity Calculations
B45: Peak Concurrent calls | C45: =C8*D8+C9*D9+C10*D10+C12*D12+SUM(C8:C12)*C16/100*D16+SUM(C8:C12)*C19/100*D19+SUM(C8:C12)*C20/100*D20 -> 3900
B46: Min # SIP Server HA pairs to handle concurrent calls | C46: =ROUNDUP(C45/INDIRECT(platform&"!MAX_concur"),0) -> 1
B47: Agent Desktop Connections (per Server) | C47: =C31/C29 -> 1000
B48: Min # SIP Server HA pairs to handle agent desktop connections | C48: =ROUNDUP(C31/INDIRECT(platform&"!MAX_concur"),0) -> 1
B50: Hardware adjustment coeficient | C50: =C38/C37 -> 1
B52: CPU Usage per scenario per server
B53: Type of Activity | C53: Call Rate per SIP Server | D53: Main Thread CPU (%) | E53: Call Manager Thread CPU (%) | F53: Single Thread CPU (%) | G53: Call Rate per SIP Proxy | H53: SIP Proxy CPU (%)
B54: Inbound Calls - Routed | C54: =C8/C29 -> 10.00 | D54: =C54*INDIRECT(platform&"!MT_inbound") -> 3.68 | E54: =C54*INDIRECT(platform&"!CM_inbound") -> 4.42 | F54: =C54*INDIRECT(platform&"!ST_inbound") -> 8.10 | G54: =C8/C30/C29 -> 5.00 | H54: =G54*INDIRECT(platform&"!PR_inbound") -> 0.59
B55: Outbound Calls - Routed, Predictive | C55: =C9/C29 -> 0.00 | D55: =C55*E9*INDIRECT(platform&"!MT_predictive_route")+ C55*(100% - E9)*INDIRECT(platform&"!MT_inbound") -> 0.00 | E55: =C55*E9*INDIRECT(platform&"!CM_predictive_route")+ C55*(100% - E9)*INDIRECT(platform&"!CM_inbound") -> 0.00 | F55: =C55*INDIRECT(platform&"!ST_predictive_route") -> 0.00 | G55: =C9/C30/C29 -> 0.00 | H55: =G55*INDIRECT(platform&"!PR_predictive_route") -> 0.00
B56: Outbound Calls - Routed, Predictive ASM | C56: =C10/C29 -> 0.00 | D56: =C56*E10*INDIRECT(platform&"!MT_predictive_merge")+ C56*(100% - E10)*INDIRECT(platform&"!MT_inbound") -> 0.00 | E56: =C56*E10*INDIRECT(platform&"!CM_predictive_merge")+ C56*(100% - E10)*INDIRECT(platform&"!CM_inbound") -> 0.00 | F56: =C56*INDIRECT(platform&"!ST_predictive_merge") -> 0.00 | G56: =C10/C30/C29 -> 0.00 | H56: =G56*INDIRECT(platform&"!PR_predictive_merge") -> 0.00
B57: Outbound Calls - Routed, Non-Predictive | C57: =C11/C29 -> 0.00 | D57: =C57*INDIRECT(platform&"!MT_inbound") -> 0.00 | E57: =C57*INDIRECT(platform&"!CM_inbound") -> 0.00 | F57: =C57*INDIRECT(platform&"!ST_inbound") -> 0.00 | G57: =C11/C37/C30 -> 0.00 | H57: =G57*INDIRECT(platform&"!PR_inbound") -> 0.00
B58: Internal Calls - Direct (non routed) | C58: =C12/C29 -> 2.00 | D58: =C58*INDIRECT(platform&"!MT_intern") -> 0.62 | E58: =C58*INDIRECT(platform&"!CM_intern") -> 0.96 | F58: =C58*INDIRECT(platform&"!ST_intern") -> 1.57 | G58: =C12/C30/C29 -> 1.00 | H58: =G58*INDIRECT(platform&"!PR_intern") -> 0.21
B59: Single-Step Transfer | C59: =SUM(C54:C57)*(C15/100) -> 2.00 | D59: =C59*INDIRECT(platform&"!MT_1xfer") -> 0.40 | E59: =C59*INDIRECT(platform&"!CM_1xfer") -> 0.63 | F59: =C59*INDIRECT(platform&"!ST_1xfer") -> 1.03 | G59: =SUM(G54:G57)*(C15/100) -> 1.00 | H59: =G59*INDIRECT(platform&"!PR_1xfer") -> 0.13
B60: Two-Step Transfer | C60: =SUM(C54:C57)*(C16/100) -> 2.00 | D60: =C60*INDIRECT(platform&"!MT_2xfer") -> 0.96 | E60: =C60*INDIRECT(platform&"!CM_2xfer") -> 2.13 | F60: =C60*INDIRECT(platform&"!ST_2xfer") -> 3.09 | G60: =SUM(G54:G57)*(C16/100) -> 1.00 | H60: =G60*INDIRECT(platform&"!PR_2xfer") -> 0.51
B61: Recording | C61: =SUM(C54:C57)*(C17/100) -> 10.00 | D61: =C61*INDIRECT(platform&"!MT_record") -> 1.20 | E61: =C61*INDIRECT(platform&"!CM_record") -> 5.70 | F61: =C61*INDIRECT(platform&"!ST_record") -> 6.90 | G61: =SUM(G54:G57)*(C17/100) -> 5.00 | H61: =G61*INDIRECT(platform&"!PR_record") -> 1.33
B62: Single-Step Conference | C62: =SUM(C54:C57)*(C18/100) -> 2.00 | D62: =C62*INDIRECT(platform&"!MT_1confr") -> 0.74 | E62: =C62*INDIRECT(platform&"!CM_1confr") -> 2.03 | F62: =C62*INDIRECT(platform&"!ST_1confr") -> 2.77 | G62: =SUM(G54:G57)*(C18/100) -> 1.00 | H62: =G62*INDIRECT(platform&"!PR_1confr") -> 0.44
B63: Two-Step Conference | C63: =SUM(C54:C57)*(C19/100) -> 1.00 | D63: =C63*INDIRECT(platform&"!MT_2confr") -> 0.61 | E63: =C63*INDIRECT(platform&"!CM_2confr") -> 1.80 | F63: =C63*INDIRECT(platform&"!ST_2confr") -> 2.41 | G63: =SUM(G54:G57)*(C19/100) -> 0.50 | H63: =G63*INDIRECT(platform&"!PR_2confr") -> 0.45
B64: Consultation | C64: =SUM(C54:C57)*(C20/100) -> 2.00 | D64: =C64*INDIRECT(platform&"!MT_consult") -> 0.90 | E64: =C64*INDIRECT(platform&"!CM_consult") -> 2.15 | F64: =C64*INDIRECT(platform&"!ST_consult") -> 3.05 | G64: =SUM(G54:G57)*(C20/100) -> 1.00 | H64: =G64*INDIRECT(platform&"!PR_consult") -> 0.50
B65: Treatments (first) | C65: =C54*(C21/100) -> 10.00 | D65: =C65*INDIRECT(platform&"!MT_treatment") -> 1.32 | E65: =C65*INDIRECT(platform&"!CM_treatment") -> 2.80 | F65: =C65*INDIRECT(platform&"!ST_treatment") -> 4.12 | G65: =G54*(C21/100) -> 5.00 | H65: =G65*INDIRECT(platform&"!PR_treatment") -> 0.74
B66: Treatments (next) | C66: =C54*(C22-1)*(C21/100) -> 40.00 | D66: =C66*INDIRECT(platform&"!MT_treatment_next") -> 5.17 | E66: =C66*INDIRECT(platform&"!CM_treatment_next") -> 3.69 | F66: =C66*INDIRECT(platform&"!ST_treatment_next") -> 8.86 | G66: =G54*(C22-1)*(C21/100) -> 20.00 | H66: =G66*INDIRECT(platform&"!PR_treatment_next") -> 0.84
B67: Monitoring | C67: =SUM(C54:C57)*(C23/100) -> 2.00 | D67: =C67*INDIRECT(platform&"!MT_monitor") -> 0.60 | E67: =C67*INDIRECT(platform&"!CM_monitor") -> 1.65 | F67: =C67*INDIRECT(platform&"!ST_monitor") -> 2.25 | G67: =SUM(G54:G57)*(C23/100) -> 1.00 | H67: =G67*INDIRECT(platform&"!PR_monitor") -> 0.33
B68: ISCC Origination | C68: =C54*(C24/100) -> 5.00 | D68: =C68*INDIRECT(platform&"!MT_iscc_source") -> 0.18 | E68: =C68*INDIRECT(platform&"!CM_iscc_source") -> 0.00 | F68: =C68*INDIRECT(platform&"!ST_iscc_source") -> 0.18 | G68: 0.00
B69: ISCC Direct-UUI | C69: =C54*(C25/100) -> 0.00 | D69: =C69*INDIRECT(platform&"!MT_iscc_directUUI") -> 0.00 | E69: =C69*INDIRECT(platform&"!CM_iscc_directUUI") -> 0.00 | F69: =C69*INDIRECT(platform&"!ST_iscc_directUUI") -> 0.00 | G69: 0.00
B70: ISCC Route | C70: =C54*(C26/100) -> 0.00 | D70: =C70*INDIRECT(platform&"!MT_iscc_route") -> 0.00 | E70: =C70*INDIRECT(platform&"!CM_iscc_route") -> 0.00 | F70: =C70*INDIRECT(platform&"!ST_iscc_route") -> 0.00 | G70: 0.00
B72: Totals | D72: =SUM(D54:D71) -> 16.37 | E72: =SUM(E54:E71) -> 27.96 | F72: =SUM(F54:F71) -> 44.33 | H72: =SUM(H54:H71) -> 6.05
B74: Agent Desktop Connections Adjustment
D75: =D72*(1+(C31/C29)*INDIRECT(platform&"!MT_aclients")) -> 16.65 | E75: =E72*(1+(C31/C29)*INDIRECT(platform&"!CM_aclients")) -> 27.96 | F75: =F72*(1+(C31/C29)*INDIRECT(platform&"!ST_aclients")) -> 45.09 | H75: =H72 -> 6.05
B77: Attached Data Adjustment
D78: =D75*(1 +C33*INDIRECT(platform&"!MT_update"))*(1+C33*C34*INDIRECT(platform&"!MT_attach")) -> 26.13 | E78: =E75 -> 27.96 | F78: =F75*(1 +C33*INDIRECT(platform&"!ST_update"))*(1+C33*C34*INDIRECT(platform&"!ST_attach")) -> 70.76 | H78: =H75 -> 6.05
B80: Virtual Queue Distribution | C80: =C35/C29 -> 100.00 | D80: =C80*INDIRECT(platform&"!MT_vqrate") + C80*C32*(C36/1000)*INDIRECT(platform&"!MT_vqdata") -> 2.24 | E80: =C80*INDIRECT(platform&"!CM_vqrate") + C80*C32*(C36/1000)*INDIRECT(platform&"!CM_vqdata") -> 0.00 | F80: =C80*INDIRECT(platform&"!ST_vqrate") + C80*C32*(C36/1000)*INDIRECT(platform&"!ST_vqdata") -> 2.24
B82: Virtual Queue Dsitribution Adjustment
D83: =D78+D80 -> 28.37 | E83: =E78+E80 -> 27.96 | F83: =F78+F80 -> 73.00
B85: Monitoring Client Connections Adjustment
D86: =D83*(1+C32*INDIRECT(platform&"!MT_mclients")) -> 31.78 | E86: =E83*(1+C32*INDIRECT(platform&"!CM_mclients")) -> 27.96 | F86: =F78*(1+C32*INDIRECT(platform&"!ST_mclients")) -> 79.25 | H86: =H78 -> 6.05
B88: Hardware Adjustment
D89: =D86*C50 -> 31.78 | E89: =E86*C50 -> 27.96 | F89: =F86*C50 -> 79.25 | H89: =H86*C50 -> 6.05
B91: Minimum # Multi-threaded SIP Server HA Pair(s) to handle Call Traffic | C91: =ROUNDUP(MAX(D89:E89)*C29/75,0) -> 1 | D91: Max Threshold is to keep CPU usage of each thread below 75%
B92: Minimum # Single-threaded SIP Server HA Pair(s) to handle Call Traffic | C92: =ROUNDUP(F89/75*C29,0) -> 2 | D92: Max Threshold is to keep CPU usage of each thread below 75%

Sheet Input&Calculation (Redirect)
B2: Genesys SIP Sizing Input Parameters | I2: Genesys SIP Sizing Output Summary
B4: Parameter | C4: Value | D4: Comments | I4: Minimum # SIP Server HA Pairs (if running multi-threaded) | J4: =C59 -> 1
B5: Operating System & Log Level | C5: Windows_all | I5: Minimum # SIP Server HA Pairs (if running single-threaded) | J5: =C60 -> 1
B7: Call Type | C7: Peak Call Traffic (calls per sec) | D7: Comments | I7: =CONCATENATE("Using current plans with ", TEXT(C22,"#")," SIP Server HA Pair(s), each with ", TEXT(C26,"#")," SIP Proxies") -> Using current plans with 1 SIP Server HA Pair(s), each with SIP Proxies
B8: Inbound Calls - Routed | C8: 75 | I8: In multi-threaded mode, estimated CPU usage would be
I9: SIP Server Main Thread CPU (estimated peak %) | J9: =D57/100 -> 41.2%
I10: SIP Server Call Manager Thread CPU (estimated peak %) | J10: =E57/100 -> 19.0%
I12: In single-threaded mode, estimated CPU usage would be
I13: SIP Server Single Thread CPU (estimated peak %) | J13: =F57/100 -> 59.0%
B14: Detailed Call Modeling | C14: Percentage or Rate | D14: Comments
B15: ISCC Origination (% of Inbound calls) | C15: 100 | I15: SIP Proxy CPU (estimated peak %) | J15: =H57/100 -> 0.0%
B16: ISCC Direct-UUI (% of Inbound calls) | C16: 0
B17: ISCC Route (% of Inbound calls) | C17: 100 | I17: SIP Network Bandwidth (total estimated peak KBps) | J17: =ROUND((C41*Network!NSIP_Redirect)/1000,0) -> 188
I18: T-Lib Network Bandwidth (total estimated peak KBps) | J18: =ROUND(((C41*Network!NTlib_Redirect + (C43+C44+C45)*Network!NTLib_ISCC + C24*C41*(C25+Network!NTlib_data))*C23)/1000,0) -> 3295
B21: Parameter | C21: Value | D21: Comments
B22: Planned # SIP Server HA Pair(s) (Warm Standby) | C22: 1
B23: Monitoring Client Connections (to each SIP Server) | C23: 6 | D23: Connections from Stat Server, ICON, etc
B24: Attached Data - Average # Updates per Call | C24: 3
B25: Attached Data - Average Size per Update (bytes) | C25: 1024
B27: Customer Platform - CPU Benchmark | C27: 30.5
B28: Customer Platform - # Logical Processors | C28: 16
B29: Genesys Reference Platform - CPU Benchmark | C29: 30.5 | D29: Dell Power Edge R710 2.8 GHz, 8 Cores/16 hyper threads
B30: Genesys Reference Platform - # Logical Processors | C30: 16
B34: Calculations
B36: Capacity Calculations
B37: Hardware adjustment coeficient | C37: =C29/C27 -> 1
B39: CPU Usage per scenario per server
B40: Type of Activity | C40: Call Rate per SIP Server | D40: Main Thread CPU (%) | E40: Call Manager Thread CPU (%) | F40: Single Thread CPU (%)
B41: Inbound Calls - Routed | C41: =C8/C22 -> 75.00 | D41: =C41*INDIRECT(platform&"!MT_redirect") -> 16.43 | E41: =C41*INDIRECT(platform&"!CM_redirect") -> 13.73 | F41: =C41*INDIRECT(platform&"!ST_redirect") -> 24.90
B43: ISCC Origination | C43: =C41*(C15/100) -> 75.00 | D43: =C43*INDIRECT(platform&"!MT_iscc_source") -> 2.63 | E43: =C43*INDIRECT(platform&"!CM_iscc_source") -> 0.00 | F43: =C43*INDIRECT(platform&"!ST_iscc_source") -> 2.63
B44: ISCC Direct-UUI | C44: =C41*(C16/100) -> 0.00 | D44: =C44*INDIRECT(platform&"!MT_iscc_directUUI") -> 0.00 | E44: =C44*INDIRECT(platform&"!CM_iscc_directUUI") -> 0.00 | F44: =C44*INDIRECT(platform&"!ST_iscc_directUUI") -> 0.00
B45: ISCC Route | C45: =C41*(C17/100) -> 75.00 | D45: =C45*INDIRECT(platform&"!MT_iscc_route") -> 12.68 | E45: =C45*INDIRECT(platform&"!CM_iscc_route") -> 5.25 | F45: =C45*INDIRECT(platform&"!ST_iscc_route") -> 17.93
B47: Totals | D47: =SUM(D41:D46) -> 31.73 | E47: =SUM(E41:E46) -> 18.98 | F47: =SUM(F41:F46) -> 45.45
B50: Attached Data Adjustment
D51: =D47*(1 +C24*INDIRECT(platform&"!MT_update"))*(1+C24*C25*INDIRECT(platform&"!MT_attach")) -> 36.78 | E51: =E47*(1 +C24*INDIRECT(platform&"!CM_update"))*(1+C24*C25*INDIRECT(platform&"!CM_attach")) -> 18.98 | F51: =F47*(1 +C24*INDIRECT(platform&"!ST_update"))*(1+C24*C25*INDIRECT(platform&"!ST_attach")) -> 52.70
B53: Monitoring Client Connections Adjustment
D54: =D51*(1+C23*INDIRECT(platform&"!MT_mclients")) -> 41.20 | E54: =E51*(1+C23*INDIRECT(platform&"!CM_mclients")) -> 18.98 | F54: =F51*(1+C23*INDIRECT(platform&"!ST_mclients")) -> 59.02 | H54: =H51 -> 0.00
B56: Hardware Adjustment
D57: =D54*C37 -> 41.20 | E57: =E54*C37 -> 18.98 | F57: =F54*C37 -> 59.02 | H57: =H54*C37 -> 0.00
B59: Minimum # Multi-threaded SIP Server HA Pair(s) to handle Call Traffic | C59: =ROUNDUP(MAX(D54:E54)*C22/75,0) -> 1 | D59: Max Threshold is to keep CPU usage of each thread below 75%
B60: Minimum # Single-threaded SIP Server HA Pair(s) to handle Call Traffic | C60: =ROUNDUP(F54/75*C22,0) -> 1 | D60: Max Threshold is to keep CPU usage of each thread below 75%

Sheet Windows_all
A1: Call and Clients Activities | B1: Windows Platform | F1: Comments
B2: Main Thread | C2: Call Manager Thread | D2: Single Thread | E2: SIP Proxy
A3: Inbound Call | B3: 0.3678756477 | C3: 0.4419689119 | D3: =B3+C3 -> 0.8098445596 | E3: 0.117
A4: Single-Step Transfer | B4: 0.2013551216 | C4: 0.3157233958 | D4: =B4+C4 -> 0.5170785173 | E4: 0.128
A5: Two-Step Transfer | B5: 0.4791831759 | C5: 1.066854617 | D5: 1.546037793 | E5: 0.511
A6: Recording | B6: 0.11981666 | C6: 0.5703387804 | D6: 0.6901554404 | E6: 0.265
A7: Single-Step Conference | B7: 0.3703596464 | C7: 1.016854617 | D7: =B7+C7 -> 1.387214264 | E7: 0.437
A8: Two-Step Conference | B8: 0.6090474293 | C8: 1.796492627 | D8: 2.405540056 | E8: 0.907
A9: Consultation Call | B9: 0.4512419994 | C9: 1.07273697 | D9: 1.52397897 | E9: 0.496
A10: Internal Call (3pcc) | B10: 0.3079617834 | C10: 0.4792993631 | D10: 0.7872611465 | E10: 0.211
A11: Treatment (first) | B11: 0.1321243523 | C11: 0.2795695496 | D11: 0.411693902 | E11: 0.147
A12: Treatment (next) | B12: 0.1292307692 | C12: 0.09230769231 | D12: 0.2215384615 | E12: 0.042
A13: Monitoring | B13: 0.2997714112 | C13: 0.8256781469 | D13: 1.125449558 | E13: 0.327
A14: Predictive | B14: 0.5788461538 | C14: 0.975 | D14: 1.553846154 | E14: 0.419
A15: Predictive ASM | B15: 0.9653846154 | C15: 0.8923076923 | D15: 1.857692308 | E15: 0.34
A16: Redirect | B16: 0.219 | C16: 0.183 | D16: 0.332 | E16: 0
A17: ISCC Origination | B17: 0.035 | C17: 0 | D17: 0.035 | E17: 0
A18: ISCC Direct-UUI | B18: 0.029 | C18: 0 | D18: 0.029 | E18: 0
A19: ISCC Route | B19: 0.169 | C19: 0.07 | D19: 0.239 | E19: 0
A22: Max number of concurent calls | B22: 15000
A24: Updates data adjustment | B24: 0.014667 | C24: 0 | D24: =B24 -> 0.014667
A25: Size data adjustment | B25: 3.6e-05 | C25: 0 | D25: =B25 -> 3.6e-05
A27: T-Library client connections adjustment (per client) | B27: 1.7e-05 | C27: 0 | D27: =B27+C27 -> 1.7e-05
A29: T-Library monitoring client connections adjustment (per client) | B29: 0.02 | C29: 0 | D29: 0.02
A31: Virtual Queue Event Distribution (rate) | B31: 0.0207 | C31: 0 | D31: 0.0207
A32: Virtual Queue Event Distribution (data size) | B32: 0.00028 | C32: 0 | D32: 0.00028

Sheet Windows_trace
A1: Call and Clients Activities | B1: Windows Platform | F1: Comments
B2: Main Thread | C2: Call Manager Thread | D2: Single Thread | E2: SIP Proxy
A3: Inbound Call | B3: 0.2383419689 | C3: 0.3590673575 | D3: =B3+C3 -> 0.5974093264 | E3: 0.085
A4: Single-Step Transfer | B4: 0.1155041849 | C4: 0.202471104 | D4: =B4+C4 -> 0.317975289 | E4: 0.066
A5: Two-Step Transfer | B5: 0.2998933252 | C5: 0.8850502895 | D5: 1.184943615 | E5: 0.391
A6: Recording | B6: 0.05550418493 | C6: 0.4763172579 | D6: 0.5318214428 | E6: 0.176
A7: Single-Step Conference | B7: 0.2469521487 | C7: 0.8115208778 | D7: 1.058473027 | E7: 0.308
A8: Two-Step Conference | B8: 0.4001195695 | C8: 1.471701873 | D8: 1.871821443 | E8: 0.672
A9: Consultation Call | B9: 0.323422737 | C9: 0.937991466 | D9: 1.261414203 | E9: 0.391
A10: Internal Call (3pcc) | B10: 0.1958598726 | C10: 0.3738853503 | D10: 0.5697452229 | E10: 0.152
A11: Treatment (first) | B11: 0.1001195695 | C11: 0.2055480271 | D11: 0.3056675967 | E11: 0.102
A12: Treatment (next) | B12: 0.09384615385 | C12: 0.07230769231 | D12: 0.1661538462 | E12: 0.024
A13: Monitoring | B13: 0.223422737 | C13: 0.7409326425 | D13: 0.9643553795 | E13: 0.342
A14: Predictive | B14: 0.4096153846 | C14: 0.8596153846 | D14: 1.269230769 | E14: 0.268
A15: Predictive ASM | B15: 0.6846153846 | C15: 0.6769230769 | D15: 1.361538462 | E15: 0.223
A16: Redirect | B16: 0.149 | C16: 0.155 | D16: 0.246 | E16: 0
A17: ISCC Origination | B17: 0.018 | C17: 0.018 | D17: 0.036 | E17: 0
A18: ISCC Direct-UUI | B18: 0.001 | C18: 0 | D18: 0.001 | E18: 0
A19: ISCC Route | B19: 0.077 | C19: 0.004 | D19: 0.081 | E19: 0
A22: Max number of concurent calls | B22: 15000
A24: Updates data adjustment | B24: 0.012903 | C24: 0 | D24: =B24 -> 0.012903
A25: Size data adjustment | B25: 1e-05 | C25: 0 | D25: =B25 -> 1e-05
A27: T-Library client connections adjustment (per client) | B27: 4e-05 | C27: 2e-06 | D27: 2.4e-05
A29: T-Library monitoring client connections adjustment (per client) | B29: 0.02 | C29: 0 | D29: 0.02
A31: Virtual Queue Event Distribution (rate) | B31: 0.0042 | C31: 0 | D31: 0.0042
A32: Virtual Queue Event Distribution (data size) | B32: 0.00015 | C32: 0 | D32: 0.00015

Sheet Linux_all
A1: Call and Clients Activities | B1: Linux Platform | F1: Comments
B2: Main Thread | C2: Call Manager Thread | D2: Single Thread | E2: SIP Proxy
A3: Inbound Call | B3: 0.364 | C3: 0.503 | D3: =B3+C3 -> 0.867 | E3: 0.097
A4: Single-Step Transfer | B4: 0.167 | C4: 0.317 | D4: =B4+C4 -> 0.484 | E4: 0.09
A5: Two-Step Transfer | B5: 0.436 | C5: 1.163 | D5: 1.599 | E5: 0.451
A6: Recording | B6: 0.056 | C6: 0.555 | D6: 0.611 | E6: 0.24
A7: Single-Step Conference | B7: 0.324 | C7: 1.087 | D7: 1.411 | E7: 0.376
A8: Two-Step Conference | B8: 0.559 | C8: 1.984 | D8: 2.543 | E8: 0.755
A9: Consultation Call | B9: 0.48 | C9: 1.208 | D9: 1.688 | E9: 0.435
A10: Internal Call (3pcc) | B10: 0.307 | C10: 0.536 | D10: 0.843 | E10: 0.172
A11: Treatment (first) | B11: 0.276 | C11: 0.357 | D11: 0.633 | E11: 0.118
A12: Treatment (next) | B12: 0.208 | C12: 0.084 | D12: 0.292 | E12: 0.039
A13: Monitoring | B13: 0.251 | C13: 0.866 | D13: 1.117 | E13: 0.295
A14: Predictive | B14: 0.73 | C14: 1.243 | D14: 1.973 | E14: 0.362
A15: Predictive ASM | B15: 1.32 | C15: 1.1 | D15: 2.42 | E15: 0.253
A16: Redirect | B16: 0.164 | C16: 0.181 | D16: 0.317 | E16: 0
A17: ISCC Origination | B17: 0.049 | C17: 0.012 | D17: 0.061 | E17: 0
A18: ISCC Direct-UUI | B18: 0.029 | C18: 0.012 | D18: 0.041 | E18: 0
A19: ISCC Route | B19: 0.178 | C19: 0.082 | D19: 0.26 | E19: 0
A22: Max number of concurent calls | B22: 15000
A24: Updates data adjustment | B24: 0.0141843 | C24: 0 | D24: =B24 -> 0.0141843
A25: Size data adjustment | B25: 2.59e-05 | C25: 0 | D25: =B25 -> 2.59e-05
A27: T-Library client connections adjustment (per client) | B27: 7.9e-05 | C27: 0 | D27: =B27 -> 7.9e-05
A29: T-Library monitoring client connections adjustment (per client) | B29: 0.02 | C29: 0 | D29: 0.02
A31: Virtual Queue Event Distribution (rate) | B31: 0.0161 | C31: 0 | D31: 0.0161
A32: Virtual Queue Event Distribution (data size) | B32: 0.000311 | C32: 0 | D32: 0.000311

Sheet Linux_trace
A1: Call and Clients Activities | B1: Linux Platform | F1: Comments
B2: Main Thread | C2: Call Manager Thread | D2: Single Thread | E2: SIP Proxy
A3: Inbound Call | B3: 0.212 | C3: 0.411 | D3: =B3+C3 -> 0.623 | E3: 0.072
A4: Single-Step Transfer | B4: 0.134 | C4: 0.262 | D4: =B4+C4 -> 0.396 | E4: 0.064
A5: Two-Step Transfer | B5: 0.321 | C5: 0.967 | D5: 1.288 | E5: 0.3
A6: Recording | B6: 0.045 | C6: 0.447 | D6: 0.492 | E6: 0.179
A7: Single-Step Conference | B7: 0.255 | C7: 0.923 | D7: 1.178 | E7: 0.287
A8: Two-Step Conference | B8: 0.413 | C8: 1.689 | D8: 2.102 | E8: 0.548
A9: Consultation Call | B9: 0.311 | C9: 0.998 | D9: 1.309 | E9: 0.321
A10: Internal Call (3pcc) | B10: 0.184 | C10: 0.447 | D10: 0.631 | E10: 0.129
A11: Treatment (first) | B11: 0.208 | C11: 0.269 | D11: 0.477 | E11: 0.081
A12: Treatment (next) | B12: 0.169 | C12: 0.089 | D12: 0.258 | E12: 0.029
A13: Monitoring | B13: 0.188 | C13: 0.712 | D13: 0.9 | E13: 0.216
A14: Predictive | B14: 0.461 | C14: 0.961 | D14: 1.422 | E14: 0.277
A15: Predictive ASM | B15: 1.02 | C15: 0.92 | D15: 1.94 | E15: 0.181
A16: Redirect | B16: 0.119 | C16: 0.16 | D16: 0.245 | E16: 0
A17: ISCC Origination | B17: 0.019 | C17: 0 | D17: 0.019 | E17: 0
A18: ISCC Direct-UUI | B18: 0.014 | C18: 0 | D18: 0.014 | E18: 0
A19: ISCC Route | B19: 0.106 | C19: 0.046 | D19: 0.152 | E19: 0
A22: Max number of concurent calls | B22: 15000
A24: Updates data adjustment | B24: 0.0125 | C24: 0 | D24: =B24 -> 0.0125
A25: Size data adjustment | B25: 1.9e-05 | C25: 0 | D25: =B25 -> 1.9e-05
A27: T-Library client connections adjustment (per client) | B27: 0.000126 | C27: 4e-06 | D27: =B27 -> 0.000126
A29: T-Library monitoring client connections adjustment (per client) | B29: 0.02 | C29: 0 | D29: 0.02
A31: Virtual Queue Event Distribution (rate) | B31: 0.00406 | C31: 0 | D31: 0.00406
A32: Virtual Queue Event Distribution (data size) | B32: 0.00026 | C32: 0 | D32: 0.00026

Sheet Network
A3: Activities | B3: SIP Trafic per call (bytes) | C3: Number of T-Library Requests/Events | D3: T-Lib Network Traffic (bytes) | F3: Average Size of Request | G3: Average Size of Event
A4: Inbound Call | B4: 7500 | C4: 15 | D4: =(C4-1)*E_size + R_size -> 3750 | F4: 250 | G4: 250
A5: Single-Step Transfer | B5: 7500 | C5: 6 | D5: 1500
A6: Two-Step Transfer | B6: 31500 | C6: 13 | D6: 3250
A7: Recording | B7: 17000 | C7: 9 | D7: 2250
A8: Single-Step Conference | B8: 23500 | C8: 9 | D8: 2250
A9: Two-Step Conference | B9: 53000 | C9: 17 | D9: 4250
A10: Consultation Call | B10: 32500 | C10: 17 | D10: 4250
A11: Internal Call (3pcc) | B11: 16000 | C11: 13 | D11: 3250
A12: Treatment (first) | B12: 6000 | C12: 2 | D12: 500
A13: Treatment (next) | B13: 1500 | C13: 2 | D13: 500
A14: Monitoring | B14: 23500 | C14: 9 | D14: 2250
A15: Predictive | B15: 15000 | C15: 6 | D15: 1500
A16: Predictive ASM | B16: 39000 | C16: 13 | D16: =(C16-1)*E_size + R_size -> 3250
A17: Redirect | B17: 2500 | C17: 5 | D17: =(C17-1)*E_size + R_size -> 1250
A18: ISCC | C18: 3 | D18: 750
A19: Data Update | C19: 2 | D19: 500
